Cogmind - Beta 14 @@@ ROGUE MODE // 2024.10.24 @ 15:07:38 Player: gremlin Result: Self-destructed Performance ------------- Evolutions (1) 500 Regions Visited (3) 600 Robots Destroyed (30) 150 Value Destroyed (740) 740 Prototype IDs (2) 40 Alien Tech Used (0) 0 Bonus (156) 156 TOTAL SCORE: 2186 Bonus ------- Follower Combat Kills 176 Friendly Fire -20 Cogmind --------- Core Integrity 392/400 Matter 300/300 Energy 109/275 System Corruption 0% Temperature Cool (6) Movement Treading (160) Location -9/Materials Parts ------- > --- POWER (1) -------- Deuterium Engine > --- PROPULSION (3) --- Light Treads Improved Treads > --- UTILITY (3) ------ Small Storage Unit Shield Generator > --- WEAPON (2) ------- Particle Cannon Scythe > --- INVENTORY (8) ---- Deuterium Engine Light Treads Light Treads Improved Heat Sink Huge Storage Unit Medium Laser Rocket Launcher Scythe Peak State ------------ > --- POWER ------------ Deuterium Engine > --- PROPULSION ------- Light Treads Light Treads Light Treads > --- UTILITY ---------- Improved Heat Sink Small Storage Unit Shield Generator > --- WEAPON ----------- Particle Cannon Scythe > --- INVENTORY -------- Deuterium Engine Light Treads Huge Storage Unit Weight Redist. System Trap Extractor Medium Laser Rocket Launcher [Rating: 18] Favorites ----------- Power Ion Engine Engine Ion Engine Propulsion Light Treads Treads Light Treads Utility Small Storage Unit Device Improved Terrain Scanner Storage Small Storage Unit Protection Light Armor Plating Weapon Medium Laser Energy Gun Medium Laser Energy Cannon Particle Cannon Special Weapon Mining Laser Impact Weapon Maul Slashing Weapon Scythe Build | -11 -10 -10 -9 ------- Run | Yrd Mat Min Mat Slots Evolved 2 | . . . 2 Power . | . . . . Propulsion 1 | . . . 1 Utility 1 | . . . 1 Weapon . | . . . . Parts Attached 25 | 8 5 2 10 Power 3 | 1 . 1 1 Engine 3 | 1 . 1 1 Core . | . . . . Reactor . | . . . . Propulsion 6 | 2 . . 4 Treads 6 | 2 . . 4 Leg . | . . . . Wheel . | . . . . Hover . | . . . . Flight . | . . . . Utility 7 | 2 1 1 3 Device 5 | 1 1 1 2 Storage 1 | 1 . . . Processor . | . . . . Hackware . | . . . . Protection 1 | . . . 1 Artifact . | . . . . Weapon 9 | 3 4 . 2 Energy Gun 4 | 2 2 . . Energy Cannon 1 | . . . 1 Ballistic Gun . | . . . . Ballistic Cannon . | . . . . Launcher . | . . . . Special Weapon 2 | 1 1 . . Impact Weapon 1 | . 1 . . Slashing Weapon 1 | . . . 1 Piercing Weapon . | . . . . Special Melee Weapon . | . . . . Unidentified Prototypes . | . . . . Parts Lost 2 | . . . 2 Power . | . . . . Propulsion 1 | . . . 1 Utility 1 | . . . 1 Weapon . | . . . . Highest Loss Streak 2 | . . . 2 To Critical Strikes . | . . . . Average Slot Usage (%) 99 | . 100 100 98 Engine 12 | . 14 14 11 Treads 29 | . 28 28 31 Device 15 | . 14 14 18 Storage 12 | . 14 14 11 Protection 1 | . . . 3 Energy Gun 10 | . 21 14 . Energy Cannon 3 | . . . 10 Impact Weapon 8 | . 4 14 5 Slashing Weapon 2 | . . . 5 Peak Build Rating 18 | 9 11 11 18 Average Rating 10 | 8 9 10 15 On Entrance 7 | . 9 11 10 Naked Turns . | . . . . Heaviest Build 25 | 15 16 16 25 Greatest Support 63 | 40 40 40 63 Greatest Overweight (x) . | . . . . Average Overweight (x) . | . . . . Largest Inventory Capacity 8 | 8 8 8 8 Average Capacity 7 | 7 8 8 8 Most Carried 8 | 4 8 8 8 Average Carried 5 | 2 5 7 7 Final Capacity 8 | 8 8 8 8 Final Carried 8 | 3 8 8 8 Class Distribution -------------------- 100% | Mutant Dominant Class ---------------- Mutant | -10/Materials Mutant | -10/Mines Mutant | -9/Materials Resources | -11 -10 -10 -9 ----------- Run | Yrd Mat Min Mat Matter Collected 450 | 280 50 20 100 Remotely . | . . . . Salvage Created 955 | 76 206 181 492 Parts 35 | 8 3 3 21 Haulers Intercepted 1 | . . . 1 Recyclers Shooed 1 | 1 . . . Parts Field Recycled . | . . . . Retrieved Matter . | . . . . Parts Self-Destructed . | . . . . Prevented . | . . . . Kills | -11 -10 -10 -9 ------- Run | Yrd Mat Min Mat Combat Hostiles Destroyed 18 | . 6 2 10 Melee 11 | . 1 1 9 Guns 2 | . 2 . . AOE 1 | . . . 1 Classes Destroyed 7 | 1 1 2 3 Worker 3 | . . 3 . Builder 2 | . . 2 . Tunneler 6 | 4 . 2 . Hauler 1 | . . . 1 Grunt 15 | . 6 2 7 Duelist 1 | . . . 1 Sentry 2 | . . . 2 Best Kill Streak 6 | 3 3 2 6 Combat Bots Only 6 | . 3 2 6 Max Kills in Single Turn 1 | 1 1 1 1 Gunslinging . | . . . . Exploded 1 | . . . 1 Melee 1 | . 1 1 1 Uniques/NPCs Destroyed . | . . . . Combat | -11 -10 -10 -9 -------- Run | Yrd Mat Min Mat Hostile Shots Fired 115 | . 37 5 73 Missed 45 | . 13 2 30 Damage Taken 868 | . 319 49 500 Core 92 | . 68 16 8 Absorbed by Shields 174 | . . . 174 Regen/Repaired (Parts) 181 | . . . 181 Core Remaining (%) 83 | 100 . 66 . Volleys Fired 70 | 43 18 . 9 Largest 2 | 2 2 . 1 Hottest 100 | 100 100 . 68 Shots Fired 87 | 50 28 . 9 Gun 34 | 14 20 . . Cannon 9 | . . . 9 Launcher . | . . . . Special 44 | 36 8 . . Kinetic . | . . . . Thermal 87 | 50 28 . 9 Explosive . | . . . . Electromagnetic . | . . . . Robot Hit Streak 6 | 3 6 . 2 Robot Miss Streak 3 | 2 2 . 3 Penetration Max . | . . . . Secondary Targets 1 | . 1 . . Max Gunslinging Chain 1 | . 1 . . Shots Hit Robots 73 | 7 30 9 27 Core Hits 21 | 4 6 1 10 Critical Kills . | . . . . Critical Parts Destroyed 6 | . 4 2 . Critical Strikes 8 | . 4 2 2 Smash 6 | . 4 2 . Sever 2 | . . . 2 Melee Attacks 52 | . 17 9 26 Impact 29 | . 17 9 3 Slashing 23 | . . . 23 Piercing . | . . . . Sneak Attacks 9 | . 1 7 1 Combat Hostiles 1 | . 1 . . Follow-up Attacks . | . . . . Damage Inflicted 2291 | 101 782 544 864 Guns 274 | 101 173 . . Cannons 103 | . . . 103 Explosions . | . . . . Melee 1914 | . 609 544 761 Ramming . | . . . . Kinetic . | . . . . Thermal 377 | 101 173 . 103 Explosive . | . . . . Electromagnetic . | . . . . Impact 1230 | . 609 544 77 Slashing 684 | . . . 684 Piercing . | . . . . Highest Corruption . | . . . . Average Corruption . | . . . . Corruption Purged . | . . . . Corruption Blocked . | . . . . Overload Shots . | . . . . Overflow Damage 524 | . 222 270 32 Projectiles . | . . . . Explosions . | . . . . Melee 524 | . 222 270 32 Knockbacks 9 | . 7 1 1 Impact 7 | . 5 1 1 Kinetic . | . . . . Secondary 2 | . 2 . . Self-Inflicted Damage . | . . . . Shots . | . . . . Rammed . | . . . . Targets Rammed . | . . . . Kicked . | . . . . Crushed . | . . . . Highest Temperature 345 | 195 345 . 34 Average Temperature 67 | 60 89 . 19 Received Heat Transfer 368 | . 183 27 158 Siege Activations . | . . . . Robots Corrupted 9 | . 3 6 . Combat Hostiles 4 | . 3 1 . Parts Fried 11 | . . 11 . Impact Corruptions 21 | . 8 12 1 Robots Melted . | . . . . Combat Hostiles . | . . . . Parts Melted . | . . . . Heat Transferred 999 | 296 518 . 185 Parts Sabotaged . | . . . . Parts Stolen . | . . . . Parts Stripped . | . . . . Power Chain Reactions . | . . . . Alert | -11 -10 -10 -9 ------- Run | Yrd Mat Min Mat Peak Influence 161 | 20 150 88 161 Initial 58 | . . 58 1 Average 34 | 3 43 52 85 Maximum Alert Level . | . . . . Low Security (%) 100 | 100 100 100 100 Level 1 . | . . . . Level 2 . | . . . . Level 3 . | . . . . Level 4 . | . . . . Level 5 . | . . . . High Security . | . . . . Max Security . | . . . . Squads Dispatched 4 | . 1 . 3 Investigation 1 | . 1 . . Extermination . | . . . . Reinforcement 3 | . . . 3 Assault . | . . . . Garrison . | . . . . Intercept . | . . . . Searches Triggered . | . . . . Construction Impeded . | . . . . Haulers Reinforced . | . . . . Active Scanning Responses . | . . . . Cargo Convoy Interrupts . | . . . . Stealth | -11 -10 -10 -9 --------- Run | Yrd Mat Min Mat Distress Signals 3 | . . . 3 Communications Jammed . | . . . . Distress Signals . | . . . . Times Spotted 39 | . 10 2 27 Peak Tracking Total 10 | . 3 2 10 Tactical Retreats 3 | . 2 . 1 Traps | -11 -10 -10 -9 ------- Run | Yrd Mat Min Mat Traps Triggered 1 | . 1 . . Indirectly . | . . . . Trap Hack Attempts . | . . . . Triggered . | . . . . Disarmed . | . . . . Reprogrammed . | . . . . Reused . | . . . . Traps Extracted . | . . . . Installed . | . . . . Triggered . | . . . . Most Traps Carried 3 | . . 3 3 Machines | -11 -10 -10 -9 ---------- Run | Yrd Mat Min Mat Machines Disabled 1 | . . . 1 Max in Single Turn 1 | . . . 1 Machines Repaired . | . . . . Machines Dismantled . | . . . . Machines Sabotaged . | . . . . Overloaded Fab Kills . | . . . . Hacking | -11 -10 -10 -9 --------- Run | Yrd Mat Min Mat Machines Accessed 10 | . 3 1 6 Terminals 7 | . 2 1 4 Fabricators . | . . . . Repair Stations 1 | . . . 1 Recycling Units 1 | . 1 . . Scanalyzers 1 | . . . 1 Garrison Access . | . . . . Total Hacks 27 | . 7 3 17 Successful 16 | . 2 1 13 Failed 11 | . 5 2 4 Catastrophic . | . . . . Database Lockouts . | . . . . Manual 10 | . . 3 7 Terminals 17 | . 3 3 11 Fabricators . | . . . . Repair Stations 4 | . . . 4 Recycling Units 4 | . 4 . . Scanalyzers 2 | . . . 2 Garrison Access . | . . . . Terminal Hacks 4 | . . 1 3 Prototype ID Bank 1 | . . . 1 Alert Level 1 | . . . 1 Zone Layout 2 | . . 1 1 Fabricator Hacks . | . . . . Repair Station Hacks 4 | . . . 4 Scan Component 2 | . . . 2 Repair 2 | . . . 2 Recycling Unit Hacks 2 | . 2 . . Report Inventory 1 | . 1 . . Retrieve Components 1 | . 1 . . Scanalyzer 2 | . . . 2 Insert Component 1 | . . . 1 Analyze 1 | . . . 1 Garrison Access Hacks . | . . . . Unauthorized Hacks 4 | . . . 4 Terminals 4 | . . . 4 Botnet 4 | . . . 4 Fabricators . | . . . . Repair Stations . | . . . . Recycling Units . | . . . . Scanalyzers . | . . . . Garrison Access . | . . . . Data Cores Recovered . | . . . . Used . | . . . . Hacking Detections 9 | . 2 1 6 Full Trace Events . | . . . . Feedback Events . | . . . . Feedback Blocked . | . . . . Robot Schematics Acquired . | . . . . Robots Built . | . . . . Authchips . | . . . . Time . | . . . . Total Robot Build Rating . | . . . . Part Schematics Acquired 1 | . . . 1 Parts Built . | . . . . Authchips . | . . . . Time . | . . . . Total Part Build Rating . | . . . . Parts Repaired 2 | . . . 2 Time 52 | . . . 52 Parts Recycled . | . . . . Recycled Matter . | . . . . Retrieved Matter . | . . . . Retrieved Components 2 | . 2 . . Parts Scanalyzed 1 | . . . 1 Part Schematics Acquired 1 | . . . 1 Parts Damaged . | . . . . Bothacking | -11 -10 -10 -9 ------------ Run | Yrd Mat Min Mat Used RIF Installer . | . . . . Robots Hacked . | . . . . Non-combat . | . . . . Combat . | . . . . Robot Hacks Applied . | . . . . Relay Couplers Released . | . . . . Fabnet Peak Effective % . | . . . . Robots Rewired . | . . . . Allies Hacked . | . . . . Hacks Repelled . | . . . . Allies | -11 -10 -10 -9 -------- Run | Yrd Mat Min Mat Total Allies 3 | . . 3 . Largest Group 3 | . . 3 3 Highest-Rated Group 40 | . . 40 40 Highest-Rated Ally 16 | . . 16 16 Total Orders . | . . . . Ally Attacks 35 | . . . 35 Total Damage 344 | . . . 344 Kills 7 | . . . 7 Allies Corrupted . | . . . . Allies Melted . | . . . . Intel | -11 -10 -10 -9 ------- Run | Yrd Mat Min Mat Robot Analysis Total . | . . . . Derelict Logs Recovered 2 | . . 2 . Drone Launches . | . . . . Drone Recoveries . | . . . . Exploration | -11 -10 -10 -9 ------------- Run | Yrd Mat Min Mat Turns Passed 4345 | 2040 531 942 832 Spaces Moved 1780 | 642 215 559 364 Core 12 | 12 . . . Treads 1768 | 630 215 559 364 Legs . | . . . . Wheels . | . . . . Hover . | . . . . Flight . | . . . . Fastest Speed 50 | 50 160 160 160 Average Speed 159 | 157 160 160 160 Slowest Speed 160 | 160 160 160 160 Overloaded Moves . | . . . . Propulsion Burnouts . | . . . . Robots Hopped . | . . . . Cave-ins Triggered . | . . . . Exploration Rate (%) 47 | 33 31 93 33 Regions Visited 3 Branch Regions 1 Pre-discovered Areas 1 | . . 1 . Known Exits Taken . | . . . . Unknown Exits Taken 3 | 1 1 1 . Scrap Searched 1 | . . 1 . Spaces Dug 14 | 7 7 . . Terrain Destroyed 19 | 12 7 . . Melee . | . . . . Projectile 19 | 12 7 . . AOE . | . . . . Terrain Rammed . | . . . . Walls Destroyed . | . . . . Machines Disabled . | . . . . Actions | -11 -10 -10 -9 --------- Run | Yrd Mat Min Mat Total 3026 | 1546 322 590 568 Wait 1045 | 844 63 13 125 Move 1777 | 641 214 558 364 Hop . | . . . . Pick Up 38 | 10 5 4 19 Fast Attach . | . . . . Attach 10 | 7 . . 3 Detach . | . . . . Swap 15 | 1 5 2 7 Drop 19 | . . 4 15 Fire 70 | 43 18 . 9 Melee 52 | . 17 9 26 Ram . | . . . . Kick . | . . . . Crush . | . . . . Escape Stasis . | . . . . Rewire . | . . . . Trap . | . . . . Miscellaneous . | . . . . Route ------- -11/Scrapyard -10/Materials -10/Mines (discovered 2 exits: *Mat x2) -9/Materials History --------- Turn | Location | Event 3 | -11/Scrapyard | Discovered new exit (range 16) 2041 | -11/Scrapyard | Entered Materials 2062 | -10/Materials | Build established: Mutant 2336 | -10/Materials | Discovered new exit (range 15) 2572 | -10/Materials | Entered Mines 2885 | -10/Mines | Discovered new exit (range 7) 2910 | -10/Mines | Discovered new exit (range 8) 3032 | -10/Mines | Assisted by bots powering up and referring to "LRC-V3" 3111 | -10/Mines | Learned Materials terminal intel 3135 | -10/Mines | Found a hidden stash of uninstalled traps 3182 | -10/Mines | Received a Rocket Launcher from a helpful Derelict 3514 | -10/Mines | Entered Materials 3514 | -9/Materials | Accompanied by 3 allies 3514 | -9/Materials | Evolved 2 slots: Propulsion x1, Utility x1 3515 | -9/Materials | Loaded intel: 12 terminal locations 3722 | -9/Materials | Lost 3 allies 4148 | -9/Materials | Repaired Lgt. Treads 4177 | -9/Materials | Repaired Lgt. Treads 4346 | -9/Materials | Self-destructed Last Messages --------------- 04318_ K-01 Serf collects debris. 04323_ R-06 Scavenger collects Heat Sink. 04323_ K-01 Serf collects debris. 04324_ G-34 Mercenary destroyed. 04326_ R-06 Scavenger collects Sml. Laser. 04326_ Y-45 Defender Hvy. Assault Rifle severed. 04326_ K-01 Serf collects debris. 04329_ Y-45 Defender destroyed. 04329_ R-06 Scavenger collects Hvy. Assault Rifle. 04332_ K-01 Serf collects debris. 04335_ Fusion Modulator explodes. 04335_ Lgt. Treads destroyed. 04335_ G-34 Mercenary destroyed. 04335_ K-01 Serf destroyed. 04335_ Scanalyzer disabled. 04335_ R-06 Scavenger destroyed. 04335_ K-01 Serf collects debris. 04343_ Lgt. Armor Plating destroyed. 04343_ M-13 Machinist repairs Wheel. 04345_ K-01 Serf collects debris. Map ----- +----------------------------------------------------+ | ?????????????????????????????????????????????????? | | ?????????????????????????????????????????????????? | | ?????????????????????????????????????????????????? | | ?????????????????????????????????????????????????? | | ?????????????????????????????????????????????????? | | ?????????????????????????????????????????????????? | | ?????????????T"??????????????????????????????????? | | ??????????????"??????????????????????????????????? | | ??????????????????????????????????????????????? | | ??????????????????????????????????????????????? | | ?????????????????????????+?????? ?????????????? | | ????????????????????????# ????? "?????????????? | | ?"""""????????????????### ###?? """ #?????????? | | ?""T""??????????????### | #? """ ??????????? | | ????????????????????? #? ???????????? | | ????????????????????? + ????????????# | | ?????????????????????? # ????????????# | | ????????????????????### !# ########### | | ???????????????######;;w;;;;; "" # + | | ???????????????# ; S"" ?# = # | | ???????????????# ; " ???# # | | ???????????????# " " ;;;#????#! # | | ???????????????# "R" * ; #?????#%""" "" / | | ???????????????# """ [%! ; #?????# """ S"" # | | ?????????############;;;;;;;;;####### """ "" # | | ?????????# %@ /o r !# | | ???????### o k*[g ;################# | | ???????? """ "" =g%% ##?????# ## | | ?????????# """""""""m%[ #??????# ## | | ??"?"????# """"" #??????# ## | | ??"T"????# #??????# """ # | | ??"""????# u #??????# """"" # | | ?????????# ####???# """"" + T | | ?????????# !##??# """"" # | | ?????????# "T" k !#??# """ # | | ?????????# !#??# ##### | | ?????????# w !#??##########???? | | ?????????# #### ###### ### !#???????????????? | | ????????## ####/######+##? !##???????????????? | | ????????# # % ####????????????????? | | ??????### # """"""" #????????????????????? | | ?? "" # """"""" ?????????????????????? | | T + """"""" #????????????????????? | | ?? # """"""? #????????????????????? | | ??? ##### # """""???#??########?########## | | ????????# # ?????# #?# !! | | ????????### #############????# #?# !! | | ??????????# ?????????????????# """ #?# !! """ | | ??????????+ ?????????????????# """ #?# """ | | ??????????# ?????????????????# """ [#?# """ | +----------------------------------------------------+ Best States ------------- Heat Dissipation 42 Energy Generation 14 Energy Capacity 275 Matter Stores 300 Matter Capacity 300 Sight Range 16 Terrain Scan Range 16 Terrain Scan Density 10 Armor Coverage 150 Evasion (%) 50 Recoil Reduction 3 Trap Extractor Capacity 4 Item Schematics ----------------- Scythe | -9/Materials | Scanalyzed Robot Schematics ------------------ None Fabricated ------------ Nothing Alien Tech Used ----------------- None Achievements -------------- Quantum Hacking Challenges ------------ None Game ------ Seed ProjectionArmorBeam Manual? 0 Play Time 00:28:19 Cumulative 12.9 hours Start 2024.10.23 @ 15:09:20 End 2024.10.24 @ 15:07:38 Sessions 2 Manual Loads 0 Difficulty Rogue Special Mode None Game No. 48 Rogue 48 Adventurer 0 Explorer 0 Win Type - Total 1 Types 1/0/0/0/0/0/0/0/0 Lore% 9 Gallery% 18 Achievement% 23 Wizard Run 0 Options --------- Layout 0 ASCII 0 Keyboard 0 Movement Numpad Keybinds 0 Fullscreen 1 Font 24/Smallcaps Map View 76x50 Zoom Use 0% Tactical HUD 1 Map Filters NONE Filters NONE Steam 1 RUN: a4b76a51-4569-48da-8692-cfc5975be531